fUST/lending_fUST_20250514
["ID","MTS","AMOUNT","RATE_DAILY","PERIOD"]
[360963936,1747167035554,-9303.72,0.00013698,2]
[360963937,1747167035565,-300.0,0.00013698,2]
[360963938,1747167035575,-422.87,0.00013698,2]
[360963939,1747167035586,-400.0,0.00013698,2]
[360963940,1747167035598,-3579.06,0.00013698,2]
[360963941,1747167035608,-400.0,0.00013698,2]
[360963942,1747167035618,-2820.85,0.00013698,2]
[360963943,1747167035627,-400.0,0.00013698,2]
[360963944,1747167035638,-400.0,0.00013698,2]
[360963945,1747167035648,-578.71,0.00013698,2]
[360963946,1747167035657,-400.0,0.00013698,2]
[360963947,1747167035667,-708.08,0.00013698,2]
[360963948,1747167035676,-1081.48,0.00013698,2]
[360963949,1747167035686,-400.0,0.00013698,2]
[360963950,1747167035695,-400.0,0.00013698,2]
[360963951,1747167035704,-1966.8,0.00013698,2]
[360963952,1747167035714,-434.27,0.00013698,2]
[360963953,1747167035723,-400.0,0.00013698,2]
[360963954,1747167035733,-530.39,0.00013698,2]
[360963955,1747167035742,-805.93,0.00013698,2]
[360963956,1747167035752,-400.0,0.00013698,2]
[360963957,1747167035761,-400.0,0.00013698,2]
[360963958,1747167035771,-797.76,0.00013698,2]
[360963959,1747167035781,-689.78,0.00013698,2]
[360963960,1747167035790,-470.41,0.00013698,2]
[360963961,1747167035800,-2156.6,0.00013698,2]
[360963962,1747167035810,-400.0,0.00013698,2]
[360963963,1747167035819,-961.67,0.00013698,2]
[360963964,1747167035829,-400.0,0.00013698,2]
[360963965,1747167035839,-201.39860187,0.00013698,2]
[360963966,1747167035849,-466.37290687,0.00013698,2]
[360963967,1747167035859,-435.13,0.00013698,2]
[360963968,1747167035868,-414.11,0.00013698,2]
[360963969,1747167035878,-400.0,0.00013698,2]
[360963970,1747167035887,-400.0,0.00013698,2]
[360963971,1747167035897,-400.0,0.00013698,2]
[360963972,1747167035907,-486.54,0.00013698,2]
[360963973,1747167035916,-899.8,0.00013698,2]
[360963974,1747167035925,-566.02,0.00013698,2]
[360963975,1747167035935,-423.6,0.00013698,2]
[360963976,1747167035944,-451.11,0.00013698,2]
[360963977,1747167035954,-400.0,0.00013698,2]
[360963978,1747167035964,-400.0,0.00013698,2]
[360963979,1747167035974,-4372.58,0.00013698,2]
[360963980,1747167035983,-1906.67,0.00013698,2]
[360963981,1747167035993,-1891.4,0.00013698,2]
[360963982,1747167036003,-400.0,0.00013698,2]
[360963983,1747167036013,-486.04,0.00013698,2]
[360963984,1747167036023,-528.57463427,0.00013698,2]
[360963985,1747167036033,-445.28,0.00013698,2]
[360963986,1747167036042,-478.8,0.00013698,2]
[360963987,1747167036052,-773.93,0.00013698,2]
[360963988,1747167036062,-400.0,0.00013698,2]
[360963989,1747167036071,-2464.89,0.00013698,2]
[360963990,1747167036081,-3800.89,0.00013698,2]
[360963991,1747167036091,-400.0,0.00013698,2]
[360963992,1747167036101,-400.0,0.00013698,2]
[360963993,1747167036110,-716.99,0.00013698,2]
[360963994,1747167036121,-400.0,0.00013698,2]
[360963995,1747167036130,-1179.73,0.00013698,2]
[360963996,1747167036140,-1338.76,0.00013698,2]
[360963997,1747167036150,-400.0,0.00013698,2]
[360963998,1747167036159,-400.0,0.00013698,2]
[360963999,1747167036168,-400.0,0.00013698,2]
[360964000,1747167036178,-971.74,0.00013698,2]
[360964001,1747167036188,-400.0,0.00013698,2]
[360964002,1747167036197,-2312.11,0.00013698,2]
[360964003,1747167036207,-400.0,0.00013698,2]
[360964004,1747167036217,-400.0,0.00013698,2]
[360964005,1747167036226,-283.98377337,0.00013698,2]
[360964006,1747167036236,-400.0,0.00013698,2]
[360964007,1747167036245,-755.25,0.00013698,2]
[360964008,1747167036255,-400.0,0.00013698,2]
[360964009,1747167036264,-400.0,0.00013698,2]
[360964010,1747167036274,-753.51,0.00013698,2]
[360964011,1747167036283,-400.0,0.00013698,2]
[360964012,1747167036293,-5558.39,0.00013698,2]
[360964013,1747167036302,-2506.43,0.00013698,2]
[360964014,1747167036312,-400.0,0.00013698,2]
[360964015,1747167036325,-785.57,0.00013698,2]
[360964016,1747167036335,-400.0,0.00013698,2]
[360964017,1747167036346,-400.0,0.00013698,2]
[360964018,1747167036355,-7798.66,0.00013698,2]
[360964019,1747167036366,-1588.77,0.00013698,2]
[360964020,1747167036375,-400.0,0.00013698,2]
[360964021,1747167036384,-999.36,0.00013698,2]
[360964022,1747167036395,-904.72,0.00013698,2]
[360964023,1747167036406,-400.0,0.00013698,2]
[360964024,1747167036415,-500.0,0.00013698,2]
[360964025,1747167036425,-922.17,0.00013698,2]
[360964026,1747167036435,-1685.99,0.00013698,2]
[360964027,1747167036444,-1142.33,0.00013698,2]
[360964028,1747167036454,-536.25,0.00013698,2]
[360964029,1747167036464,-400.0,0.00013698,2]
[360964030,1747167036474,-2291.72,0.00013698,2]
[360964031,1747167036483,-400.0,0.00013698,2]
[360964032,1747167036493,-400.0,0.00013698,2]
[360964033,1747167036504,-532.21,0.00013698,2]
[360964034,1747167036514,-944.0,0.00013698,2]
[360964035,1747167036524,-3954.06,0.00013698,2]
[360964036,1747167036535,-400.0,0.00013698,2]
[360964037,1747167036545,-168.42043122,0.00013698,2]
[360964038,1747167036555,-400.0,0.00013698,2]
[360964039,1747167036565,-400.0,0.00013698,2]
[360964040,1747167036575,-1920.27,0.00013698,2]
[360964041,1747167036584,-405.71,0.00013698,2]
[360964042,1747167036597,-400.0,0.00013698,2]
[360964043,1747167036606,-400.0,0.00013698,2]
[360964044,1747167036616,-400.0,0.00013698,2]
[360964045,1747167036626,-813.97,0.00013698,2]
[360964046,1747167036635,-411.6,0.00013698,2]
[360964047,1747167036645,-400.0,0.00013698,2]
[360964048,1747167036655,-841.74,0.00013698,2]
[360964049,1747167036664,-400.0,0.00013698,2]
[360964050,1747167036675,-2729.39,0.00013698,2]
[360964051,1747167036685,-400.0,0.00013698,2]
[360964052,1747167036695,-1151.82,0.00013698,2]
[360964053,1747167036705,-940.95,0.00013698,2]
[360964054,1747167036714,-400.0,0.00013698,2]
[360964055,1747167036724,-400.0,0.00013698,2]
[360964056,1747167036735,-400.0,0.00013698,2]
[360964057,1747167036744,-400.0,0.00013698,2]
[360964058,1747167036754,-975.25,0.00013698,2]
[360964059,1747167036764,-400.0,0.00013698,2]
[360964060,1747167036774,-400.0,0.00013698,2]
[360964061,1747167036784,-4464.88,0.00013698,2]
[360964062,1747167036794,-2234.09,0.00013698,2]
[360964063,1747167036804,-1008.05,0.00013698,2]
[360964064,1747167036813,-400.0,0.00013698,2]
[360964065,1747167036823,-11176.64,0.00013698,2]
[360964066,1747167036833,-3892.27,0.00013698,2]
[360964067,1747167036844,-411.65,0.00013698,2]
[360964068,1747167036853,-668.35,0.00013698,2]
[360964069,1747167036863,-1062.63660732,0.00013698,2]
[360964070,1747167036873,-400.0,0.00013698,2]
[360964071,1747167036882,-400.0,0.00013698,2]
[360964072,1747167036892,-400.0,0.00013698,2]
[360964073,1747167036902,-1305.97,0.00013698,2]
[360964074,1747167036911,-400.0,0.00013698,2]
[360964075,1747167036921,-400.0,0.00013698,2]
[360964076,1747167036931,-3156.03,0.00013698,2]
[360964077,1747167036941,-400.0,0.00013698,2]
[360964078,1747167036951,-710.33,0.00013698,2]
[360964079,1747167036960,-615.01,0.00013698,2]
[360964080,1747167036970,-462.82,0.00013698,2]
[360964081,1747167036979,-2885.66,0.00013698,2]
[360964082,1747167036989,-1343.84,0.00013698,2]
[360964083,1747167036998,-400.0,0.00013698,2]
[360964084,1747167037007,-400.0,0.00013698,2]
[360964085,1747167037017,-8218.67,0.00013698,2]
[360964086,1747167037027,-226.0076653,0.00013699,2]
[360964087,1747167037037,-828.39922,0.00013699,2]
[360964088,1747167037047,-500.0,0.00013699,2]
[360964089,1747167037057,-500.0,0.00013699,2]
[360964090,1747167037068,-500.0,0.00013699,2]
[360964091,1747167037078,-239.5831245,0.00013699,2]
[360964092,1747167037088,-500.0,0.00013699,2]
[360964093,1747167037098,-500.0,0.00013699,2]
[360964094,1747167037107,-160.0,0.00013735,2]
[360964095,1747167037117,-160.0,0.00013736,2]
[360964096,1747167037127,-422.24190663,0.00013736,2]
[360964097,1747167037137,-652.61296533,0.00013757,2]
[360964098,1747167037148,-150.0,0.00013972,2]
[360964099,1747167037158,-425.82,0.00013972,2]
[360964100,1747167037168,-416.17,0.00013972,2]
[360964101,1747167037178,-400.0,0.00013972,2]
[360964102,1747167037188,-400.0,0.00013972,2]
[360964103,1747167037198,-400.0,0.00013972,2]
[360964104,1747167037208,-532.38,0.00013972,2]
[360964105,1747167037220,-400.0,0.00013972,2]
[360964106,1747167037230,-400.0,0.00013972,2]
[360964107,1747167037240,-925.82,0.00013972,2]
[360964108,1747167037250,-400.0,0.00013972,2]
[360964109,1747167037260,-400.0,0.00013972,2]
[360964110,1747167037270,-400.0,0.00013972,2]
[360964111,1747167037280,-400.0,0.00013972,2]
[360964112,1747167037289,-400.0,0.00013972,2]
[360964113,1747167037299,-400.0,0.00013972,2]
[360964114,1747167037309,-400.0,0.00013972,2]
[360964115,1747167037318,-400.0,0.00013972,2]
[360964116,1747167037330,-1395.3,0.00013972,2]
[360964117,1747167037342,-400.0,0.00013972,2]
[360964118,1747167037352,-400.0,0.00013972,2]
[360964119,1747167037362,-413.2357418,0.00013972,2]
[360964120,1747167037373,-400.0,0.00013972,2]
[360964121,1747167037383,-400.0,0.00013972,2]
[360964122,1747167037393,-400.0,0.00013972,2]
[360964123,1747167037404,-400.0,0.00013972,2]
[360964124,1747167037413,-400.0,0.00013972,2]
[360964125,1747167037424,-400.0,0.00013972,2]
[360964126,1747167037433,-400.0,0.00013972,2]
[360964127,1747167037443,-519.08,0.00013972,2]
[360964128,1747167037453,-170.2985074,0.00013972,2]
[360964129,1747167037463,-400.0,0.00013972,2]
[360964130,1747167037474,-400.0,0.00013972,2]
[360964131,1747167037484,-554.68,0.00013972,2]
[360964132,1747167037494,-400.0,0.00013972,2]
[360964133,1747167037507,-400.0,0.00013972,2]
[360964134,1747167037518,-677.9,0.00013972,2]
[360964135,1747167037529,-400.0,0.00013972,2]
[360964136,1747167037539,-400.0,0.00013972,2]
[360964138,1747167037550,-537.08,0.00013972,2]
[360964139,1747167037561,-400.0,0.00013972,2]
[360964140,1747167037572,-1568.72,0.00013972,2]
[360964141,1747167037583,-1173.98,0.00013972,2]
[360964143,1747167037594,-412.71,0.00013972,2]
[360964145,1747167037605,-400.0,0.00013972,2]
[360964146,1747167037615,-824.92,0.00013972,2]
[360964148,1747167037626,-478.83,0.00013972,2]
[360964149,1747167037636,-371.17405752,0.00013972,2]
[360964150,1747167037647,-400.0,0.00013972,2]
[360964151,1747167037658,-400.0,0.00013972,2]
[360964152,1747167037668,-911.31,0.00013972,2]
[360964153,1747167037679,-400.0,0.00013972,2]
[360964154,1747167037689,-281.13860888,0.00013972,2]
[360964156,1747167037699,-400.0,0.00013972,2]
[360964157,1747167037710,-400.0,0.00013972,2]
[360964158,1747167037720,-400.0,0.00013972,2]
[360964159,1747167037730,-490.92,0.00013972,2]
[360964161,1747167037740,-310.99552849,0.00013972,2]
[360964163,1747167037751,-1156.89,0.00013972,2]
[360964165,1747167037762,-400.0,0.00013972,2]
[360964167,1747167037772,-772.6,0.00013972,2]
[360964168,1747167037783,-400.0,0.00013972,2]
[360964170,1747167037795,-1829.54,0.00013972,2]
[360964171,1747167037806,-452.45,0.00013972,2]
[360964172,1747167037816,-400.0,0.00013972,2]
[360964174,1747167037827,-400.0,0.00013972,2]
[360964175,1747167037838,-400.0,0.00013972,2]
[360964177,1747167037849,-400.0,0.00013972,2]
[360964178,1747167037859,-400.0,0.00013972,2]
[360964180,1747167037869,-400.0,0.00013972,2]
[360964181,1747167037880,-667.14,0.00013972,2]
[360964182,1747167037890,-400.0,0.00013972,2]
[360964183,1747167037901,-460.84,0.00013972,2]
[360964184,1747167037911,-441.12,0.00013972,2]
[360964185,1747167037923,-400.0,0.00013972,2]
[360964187,1747167037934,-400.0,0.00013972,2]
[360964188,1747167037944,-787.68,0.00013972,2]
[360964189,1747167037955,-400.0,0.00013972,2]
[360964190,1747167037965,-724.73,0.00013972,2]
[360964191,1747167037975,-400.0,0.00013972,2]
[360964192,1747167037986,-402.88,0.00013972,2]
[360964193,1747167037996,-511.73,0.00013972,2]
[360964194,1747167038007,-1261.73,0.00013972,2]
[360964195,1747167038018,-400.0,0.00013972,2]
[360964196,1747167038029,-400.0,0.00013972,2]
[360964197,1747167038039,-400.0,0.00013972,2]
[360964198,1747167038049,-400.0,0.00013972,2]
[360964199,1747167038060,-623.28,0.00013972,2]
[360964200,1747167038071,-1223.85,0.00013972,2]
[360964201,1747167038082,-400.0,0.00013972,2]
[360964202,1747167038094,-813.54,0.00013972,2]
[360964203,1747167038104,-410.86,0.00013972,2]
[360964204,1747167038115,-610.29,0.00013972,2]
[360964205,1747167038124,-400.0,0.00013972,2]
[360964206,1747167038134,-509.2,0.00013972,2]
[360964207,1747167038144,-400.0,0.00013972,2]
[360964208,1747167038155,-539.25,0.00013972,2]
[360964209,1747167038165,-400.0,0.00013972,2]
[360964210,1747167038175,-900.7,0.00013972,2]
[360964211,1747167038185,-531.75,0.00013972,2]
[360964213,1747167038196,-400.0,0.00013972,2]
[360964214,1747167038207,-691.03,0.00013972,2]
[360964215,1747167038221,-1837.6,0.00013972,2]
[360964216,1747167038231,-400.0,0.00013972,2]
[360964217,1747167038242,-403.55,0.00013972,2]
[360964218,1747167038253,-410.71,0.00013972,2]
[360964219,1747167038264,-400.0,0.00013972,2]
[360964220,1747167038276,-1319.78,0.00013972,2]
[360964221,1747167038287,-400.0,0.00013972,2]
[360964222,1747167038297,-568.75,0.00013972,2]
[360964223,1747167038307,-1242.85,0.00013972,2]
[360964224,1747167038318,-1035.6,0.00013972,2]
[360964225,1747167038329,-790.4,0.00013972,2]
[360964226,1747167038341,-614.67,0.00013972,2]
[360964227,1747167038352,-400.0,0.00013972,2]
[360964228,1747167038363,-576.54,0.00013972,2]
[360964229,1747167038375,-400.0,0.00013972,2]
[360964230,1747167038385,-400.0,0.00013972,2]
[360964231,1747167038395,-400.0,0.00013972,2]
[360964232,1747167038408,-403.98,0.00013972,2]
[360964233,1747167038419,-400.0,0.00013972,2]
[360964234,1747167038429,-1765.54,0.00013972,2]
[360964235,1747167038439,-400.0,0.00013972,2]
[360964236,1747167038449,-400.0,0.00013972,2]
[360964237,1747167038460,-1151.3,0.00013972,2]
[360964238,1747167038470,-400.0,0.00013972,2]
[360964239,1747167038480,-427.38,0.00013972,2]
[360964240,1747167038491,-400.0,0.00013972,2]
[360964241,1747167038501,-422.65,0.00013972,2]
[360964242,1747167038512,-400.0,0.00013972,2]
[360964243,1747167038522,-400.0,0.00013972,2]
[360964244,1747167038533,-463.81,0.00013972,2]
[360964245,1747167038544,-862.18,0.00013972,2]
[360964246,1747167038555,-400.0,0.00013972,2]
[360964247,1747167038565,-519.43,0.00013972,2]
[360964248,1747167038576,-400.0,0.00013972,2]
[360964249,1747167038586,-400.0,0.00013972,2]
[360964250,1747167038597,-400.0,0.00013972,2]
[360964251,1747167038608,-400.0,0.00013972,2]
[360964252,1747167038619,-400.0,0.00013972,2]
[360964253,1747167038630,-869.16,0.00013972,2]
[360964254,1747167038640,-400.0,0.00013972,2]
[360964255,1747167038650,-400.0,0.00013972,2]
[360964256,1747167038661,-400.0,0.00013972,2]
[360964257,1747167038672,-649.91,0.00013972,2]
[360964258,1747167038682,-530.89,0.00013972,2]
[360964259,1747167038693,-400.0,0.00013972,2]
[360964260,1747167038705,-404.88,0.00013972,2]
[360964261,1747167038715,-400.0,0.00013972,2]
[360964262,1747167038726,-400.0,0.00013972,2]
[360964263,1747167038737,-400.0,0.00013972,2]
[360964264,1747167038747,-400.0,0.00013972,2]
[360964265,1747167038758,-414.63,0.00013972,2]
[360964266,1747167038769,-400.0,0.00013972,2]
[360964267,1747167038780,-477.7,0.00013972,2]
[360964268,1747167038790,-400.0,0.00013972,2]
[360964269,1747167038800,-1200.84,0.00013972,2]
[360964270,1747167038811,-400.0,0.00013972,2]
[360964271,1747167038822,-400.0,0.00013972,2]
[360964272,1747167038834,-460.54,0.00013972,2]
[360964273,1747167038854,-516.69,0.00013972,2]
[360964274,1747167038865,-901.08,0.00013972,2]
[360964275,1747167038875,-454.51,0.00013972,2]
[360964276,1747167038886,-695.34,0.00013972,2]
[360964277,1747167038896,-400.0,0.00013972,2]
[360964278,1747167038907,-400.0,0.00013972,2]
[360964279,1747167038918,-400.09,0.00013972,2]
[360964280,1747167038928,-400.0,0.00013972,2]
[360964281,1747167038939,-400.0,0.00013972,2]
[360964282,1747167039191,-408.76,0.00013972,2]
[360964283,1747167039216,-815.35,0.00013972,2]
[360964284,1747167039227,-1509.55,0.00013972,2]
[360964285,1747167039237,-400.0,0.00013972,2]
[360964286,1747167039246,-400.0,0.00013972,2]
[360964287,1747167039256,-1163.81,0.00013972,2]
[360964288,1747167039267,-400.0,0.00013972,2]
[360964289,1747167039277,-430.27,0.00013972,2]
[360964290,1747167039287,-400.0,0.00013972,2]
[360964291,1747167039297,-679.9,0.00013972,2]
[360964292,1747167039307,-400.0,0.00013972,2]
[360964293,1747167039317,-428.26,0.00013972,2]
[360964294,1747167039329,-874.46,0.00013972,2]
[360964295,1747167039340,-490.0,0.00013972,2]
[360964296,1747167039351,-400.0,0.00013972,2]
[360964297,1747167039363,-400.0,0.00013972,2]
[360964298,1747167039373,-400.0,0.00013972,2]
[360964299,1747167039383,-400.0,0.00013972,2]
[360964300,1747167039393,-298.734843,0.00013972,2]
[360964301,1747167039404,-400.0,0.00013972,2]
[360964302,1747167039414,-472.87201231,0.00013972,2]
[360964303,1747167039424,-500.0,0.00013972,2]
[360964304,1747167039434,-849.99,0.00013972,2]
[360964305,1747167039443,-801.59,0.00013972,2]
[360964306,1747167039453,-520.13,0.00013972,2]
[360964307,1747167039462,-400.0,0.00013972,2]
[360964308,1747167039472,-400.0,0.00013972,2]
[360964309,1747167039481,-2645.4,0.00013972,2]
[360964310,1747167039491,-400.0,0.00013972,2]
[360964311,1747167039501,-400.0,0.00013972,2]
[360964313,1747167039511,-1819.63,0.00013972,2]
[360964314,1747167039521,-1325.44,0.00013972,2]
[360964315,1747167039531,-773.6,0.00013972,2]
[360964316,1747167039541,-1724.59,0.00013972,2]
[360964317,1747167039550,-419.98,0.00013972,2]
[360964318,1747167039560,-857.46,0.00013972,2]
[360964319,1747167039570,-400.0,0.00013972,2]
[360964320,1747167039580,-400.0,0.00013972,2]
[360964321,1747167039591,-1982.36,0.00013972,2]
[360964322,1747167039600,-3987.51,0.00013972,2]
[360964323,1747167039610,-3349.46,0.00013972,2]
[360964324,1747167039620,-1971.51,0.00013972,2]
[360964325,1747167039630,-400.0,0.00013972,2]
[360964326,1747167039639,-400.0,0.00013972,2]
[360964327,1747167039649,-400.0,0.00013972,2]
[360964328,1747167039659,-1118.77,0.00013972,2]
[360964329,1747167039668,-1005.88,0.00013972,2]
[360964330,1747167039678,-738.21,0.00013972,2]
[360964331,1747167039688,-422.73,0.00013972,2]
[360964332,1747167039698,-400.0,0.00013972,2]
[360964333,1747167039708,-400.0,0.00013972,2]
[360964334,1747167039718,-400.0,0.00013972,2]
[360964336,1747167039728,-1218.13,0.00013972,2]
[360964337,1747167039738,-400.0,0.00013972,2]
[360964338,1747167039747,-400.0,0.00013972,2]
[360964339,1747167039757,-5092.51,0.00013972,2]
[360964340,1747167039767,-400.0,0.00013972,2]
[360964342,1747167039776,-400.0,0.00013972,2]
[360964344,1747167039787,-1595.08,0.00013972,2]
[360964346,1747167039797,-458.23,0.00013972,2]
[360964348,1747167039806,-3749.57,0.00013972,2]
[360964350,1747167039815,-400.0,0.00013972,2]
[360964351,1747167039825,-779.82,0.00013972,2]
[360964352,1747167039835,-15029.04,0.00013972,2]
[360964353,1747167039845,-400.0,0.00013972,2]
[360964354,1747167039855,-400.0,0.00013972,2]
[360964355,1747167039865,-5381.73,0.00013972,2]
[360964356,1747167039875,-400.0,0.00013972,2]
[360964357,1747167039884,-881.02,0.00013972,2]
[360964358,1747167039894,-400.0,0.00013972,2]
[360964359,1747167039903,-2559.66,0.00013972,2]
[360964360,1747167039913,-1555.67,0.00013972,2]
[360964361,1747167039922,-202.32131,0.00013972,2]
[360964362,1747167039932,-578.85,0.00013972,2]
[360964363,1747167039942,-400.0,0.00013972,2]
[360964364,1747167039951,-400.0,0.00013972,2]
[360964365,1747167039960,-492.72,0.00013972,2]
[360964366,1747167039970,-202.32131,0.00013972,2]
[360964367,1747167039980,-400.0,0.00013972,2]
[360964368,1747167039990,-2548.47,0.00013972,2]
[360964369,1747167039999,-400.0,0.00013972,2]
[360964370,1747167040009,-490.54,0.00013972,2]
[360964371,1747167040019,-151.0,0.00013972,2]
[360964372,1747167040028,-400.0,0.00013972,2]
[360964373,1747167040038,-400.0,0.00013972,2]
[360964374,1747167040048,-1775.02,0.00013972,2]
[360964375,1747167040057,-400.0,0.00013972,2]
[360964376,1747167040067,-404.67,0.00013972,2]
[360964377,1747167040076,-3518.41,0.00013972,2]
[360964378,1747167040086,-1226.83,0.00013972,2]
[360964379,1747167040096,-400.0,0.00013972,2]
[360964380,1747167040106,-1695.56,0.00013972,2]
[360964381,1747167040115,-400.0,0.00013972,2]
[360964382,1747167040125,-2493.08,0.00013972,2]
[360964383,1747167040134,-400.0,0.00013972,2]
[360964384,1747167040144,-1744.8,0.00013972,2]
[360964385,1747167040153,-400.0,0.00013972,2]
[360964386,1747167040163,-400.0,0.00013972,2]
[360964387,1747167040173,-1755.63,0.00013972,2]
[360964388,1747167040184,-519.96,0.00013972,2]
[360964389,1747167040193,-400.0,0.00013972,2]
[360964390,1747167040203,-2613.08,0.00013972,2]
[360964391,1747167040215,-2989.05,0.00013972,2]
[360964392,1747167040225,-400.0,0.00013972,2]
[360964393,1747167040234,-598.43,0.00013972,2]
[360964394,1747167040243,-292.5655464,0.00013972,2]
[360964395,1747167040253,-400.0,0.00013972,2]
[360964396,1747167040263,-418.16329876,0.00013972,2]
[360964397,1747167040272,-400.0,0.00013972,2]
[360964398,1747167040282,-400.0,0.00013972,2]
[360964399,1747167040291,-400.0,0.00013972,2]
[360964400,1747167040301,-151.0,0.00013972,2]
[360964401,1747167040310,-1260.79,0.00013972,2]
[360964402,1747167040321,-417.63,0.00013972,2]
[360964403,1747167040333,-3249.88,0.00013972,2]
[360964404,1747167040345,-9303.72,0.00013972,2]
[360964405,1747167040354,-300.0,0.00013972,2]
[360964406,1747167040364,-422.87,0.00013972,2]
[360964407,1747167040375,-400.0,0.00013972,2]
[360964408,1747167040385,-3579.06,0.00013972,2]
[360964409,1747167040396,-400.0,0.00013972,2]
[360964410,1747167040406,-2820.85,0.00013972,2]
[360964411,1747167040416,-400.0,0.00013972,2]
[360964412,1747167040425,-400.0,0.00013972,2]
[360964413,1747167040435,-578.71,0.00013972,2]
[360964414,1747167040445,-314.20458553,0.00013972,2]
[360964415,1747167040454,-708.08,0.00013972,2]
[360964416,1747167040464,-1081.48,0.00013972,2]
[360964417,1747167040474,-400.0,0.00013972,2]
[360964418,1747167040484,-400.0,0.00013972,2]
[360964419,1747167040494,-1966.8,0.00013972,2]
[360964420,1747167040504,-434.27,0.00013972,2]
[360964421,1747167040514,-400.0,0.00013972,2]
[360964422,1747167040523,-530.39,0.00013972,2]
[360964423,1747167040533,-805.93,0.00013972,2]
[360964424,1747167040543,-400.0,0.00013972,2]
[360964425,1747167040553,-443.00556203,0.00013972,2]
[360964426,1747167040563,-797.76,0.00013972,2]
[360964427,1747167040572,-689.78,0.00013972,2]
[360964428,1747167040582,-470.41,0.00013972,2]
[360964429,1747167040594,-2156.6,0.00013972,2]
[360964430,1747167040603,-400.0,0.00013972,2]
[360964431,1747167040614,-961.67,0.00013972,2]
[360964432,1747167040623,-435.13,0.00013972,2]
[360964433,1747167040633,-414.11,0.00013972,2]
[360964434,1747167040642,-400.0,0.00013972,2]
[360964435,1747167040653,-400.0,0.00013972,2]
[360964436,1747167040663,-486.54,0.00013972,2]
[360964437,1747167040673,-899.8,0.00013972,2]
[360964438,1747167040682,-566.02,0.00013972,2]
[360964439,1747167040692,-423.6,0.00013972,2]
[360964440,1747167040701,-451.11,0.00013972,2]
[360964441,1747167040711,-400.0,0.00013972,2]
[360964442,1747167040721,-400.0,0.00013972,2]
[360964443,1747167040730,-4372.58,0.00013972,2]
[360964444,1747167040740,-1906.67,0.00013972,2]
[360964445,1747167040750,-1891.4,0.00013972,2]
[360964446,1747167040759,-400.0,0.00013972,2]
[360964447,1747167040769,-486.04,0.00013972,2]
[360964448,1747167040780,-445.28,0.00013972,2]
[360964449,1747167040794,-773.93,0.00013972,2]
[360964450,1747167040807,-478.8,0.00013972,2]
[360964451,1747167040818,-400.0,0.00013972,2]
[360964452,1747167040827,-2464.89,0.00013972,2]
[360964453,1747167040837,-3800.89,0.00013972,2]
[360964454,1747167040850,-494.00087725,0.00013972,2]
[360964455,1747167040859,-400.0,0.00013972,2]
[360964456,1747167040868,-716.99,0.00013972,2]
[360964457,1747167040878,-400.0,0.00013972,2]